[Event "Titled Tuesday Blitz March 28 Early 2023"]
[White "Gonzalez, Francisco Silva"]
[Black "Belozerov, Andrei"]
[WhiteFideId "1512285"]
[BlackFideId "4120213"]
[WhiteElo "2074"]
[BlackElo "2360"]
[Result "1/2-1/2"]
[Round "11"]
[TimeControl "180+2"]
[Date "2023.03.28"]
[WhiteClock "0:00:07"]
[BlackClock "0:00:05"]

1. d4 {[%clk 0:03:00]}  Nf6 {[%clk 0:02:57]} 2. c4 {[%clk 0:03:00]}  e6 {[%clk 0:02:58]} 3. Nc3 {[%clk 0:02:59]}  Bb4 {[%clk 0:02:57]} 4. a3 {[%clk 0:03:00]}  Bxc3+ {[%clk 0:02:57]} 5. bxc3 {[%clk 0:03:00]}  c5 {[%clk 0:02:58]} 6. e3 {[%clk 0:02:59]}  O-O {[%clk 0:02:57]} 7. Bd3 {[%clk 0:02:59]}  Nc6 {[%clk 0:02:56]} 8. e4 {[%clk 0:02:57]}  Ne8 {[%clk 0:02:54]} 9. Nf3 {[%clk 0:02:55]}  b6 {[%clk 0:02:52]} 10. e5 {[%clk 0:02:53]}  f5 {[%clk 0:02:50]} 11. d5 {[%clk 0:02:49]}  Na5 {[%clk 0:02:49]} 12. Bg5 {[%clk 0:02:48]}  Qc7 {[%clk 0:02:49]} 13. d6 {[%clk 0:02:49]}  Qc6 {[%clk 0:02:48]} 14. O-O {[%clk 0:02:48]}  Ba6 {[%clk 0:02:21]} 15. Nd2 {[%clk 0:02:47]}  Rf7 {[%clk 0:02:03]} 16. a4 {[%clk 0:02:45]}  h6 {[%clk 0:01:40]} 17. Be7 {[%clk 0:02:43]}  Nc7 {[%clk 0:01:35]} 18. f4 {[%clk 0:02:40]}  Rxe7 {[%clk 0:01:31]} 19. dxe7 {[%clk 0:02:39]}  Re8 {[%clk 0:01:32]} 20. Qh5 {[%clk 0:02:38]}  Rxe7 {[%clk 0:01:31]} 21. Rf3 {[%clk 0:02:38]}  d6 {[%clk 0:01:26]} 22. Rg3 {[%clk 0:02:35]}  dxe5 {[%clk 0:01:22]} 23. fxe5 {[%clk 0:02:35]}  Qd7 {[%clk 0:01:03]} 24. h4 {[%clk 0:02:07]}  Nc6 {[%clk 0:01:02]} 25. Re1 {[%clk 0:02:03]}  Bb7 {[%clk 0:00:58]} 26. Kh2 {[%clk 0:01:57]}  Ne8 {[%clk 0:00:54]} 27. Re2 {[%clk 0:01:48]}  Kf8 {[%clk 0:00:47]} 28. Ree3 {[%clk 0:01:42]}  Rf7 {[%clk 0:00:44]} 29. Re2 {[%clk 0:01:38]}  Ke7 {[%clk 0:00:37]} 30. Bc2 {[%clk 0:01:30]}  Qc7 {[%clk 0:00:29]} 31. Rge3 {[%clk 0:01:17]}  Kd8 {[%clk 0:00:28]} 32. Kg1 {[%clk 0:01:14]}  Kc8 {[%clk 0:00:28]} 33. Bxf5 {[%clk 0:01:10]}  exf5 {[%clk 0:00:27]} 34. e6 {[%clk 0:01:09]}  Re7 {[%clk 0:00:27]} 35. Qxf5 {[%clk 0:01:09]}  Nf6 {[%clk 0:00:27]} 36. Ne4 {[%clk 0:01:07]}  Nxe4 {[%clk 0:00:25]} 37. Rxe4 {[%clk 0:01:02]}  Nd8 {[%clk 0:00:25]} 38. Re5 {[%clk 0:01:01]}  Qc6 {[%clk 0:00:25]} 39. Qf8 {[%clk 0:01:00]}  Qd6 {[%clk 0:00:24]} 40. h5 {[%clk 0:00:58]}  Rxe6 {[%clk 0:00:22]} 41. Qxg7 {[%clk 0:00:57]}  Rxe5 {[%clk 0:00:17]} 42. Qxe5 {[%clk 0:00:57]}  Qxe5 {[%clk 0:00:17]} 43. Rxe5 {[%clk 0:00:57]}  Kd7 {[%clk 0:00:18]} 44. Rf5 {[%clk 0:00:56]}  Ke7 {[%clk 0:00:17]} 45. g4 {[%clk 0:00:55]}  Nf7 {[%clk 0:00:17]} 46. a5 {[%clk 0:00:53]}  Ke6 {[%clk 0:00:16]} 47. axb6 {[%clk 0:00:52]}  axb6 {[%clk 0:00:16]} 48. Kf2 {[%clk 0:00:51]}  Be4 {[%clk 0:00:16]} 49. Rf4 {[%clk 0:00:50]}  Bh7 {[%clk 0:00:15]} 50. Kg3 {[%clk 0:00:51]}  Ne5 {[%clk 0:00:14]} 51. Rf8 {[%clk 0:00:47]}  Bd3 {[%clk 0:00:14]} 52. Rh8 {[%clk 0:00:46]}  Nf7 {[%clk 0:00:13]} 53. Rb8 {[%clk 0:00:45]}  Bxc4 {[%clk 0:00:13]} 54. Rxb6+ {[%clk 0:00:45]}  Ke5 {[%clk 0:00:13]} 55. Kf3 {[%clk 0:00:42]}  Bd5+ {[%clk 0:00:11]} 56. Ke3 {[%clk 0:00:42]}  Be6 {[%clk 0:00:11]} 57. Rc6 {[%clk 0:00:38]}  Kd5 {[%clk 0:00:10]} 58. Rc7 {[%clk 0:00:36]}  Ke5 {[%clk 0:00:10]} 59. Rxc5+ {[%clk 0:00:33]}  Kd6 {[%clk 0:00:10]} 60. Kd4 {[%clk 0:00:27]}  Bxg4 {[%clk 0:00:09]} 61. Ra5 {[%clk 0:00:25]}  Be6 {[%clk 0:00:09]} 62. c4 {[%clk 0:00:25]}  Ke7 {[%clk 0:00:07]} 63. Ra7+ {[%clk 0:00:23]}  Kf6 {[%clk 0:00:07]} 64. c5 {[%clk 0:00:24]}  Nd8 {[%clk 0:00:07]} 65. Rc7 {[%clk 0:00:22]}  Kg5 {[%clk 0:00:04]} 66. Ke5 {[%clk 0:00:19]}  Bg4 {[%clk 0:00:04]} 67. c6 {[%clk 0:00:18]}  Nxc6+ {[%clk 0:00:04]} 68. Rxc6 {[%clk 0:00:16]}  Bxh5 {[%clk 0:00:05]} 69. Rc5 {[%clk 0:00:15]}  Bg4 {[%clk 0:00:05]} 70. Ke4+ {[%clk 0:00:15]}  Kh4 {[%clk 0:00:05]} 71. Kf4 {[%clk 0:00:15]}  h5 {[%clk 0:00:05]} 72. Rg5 {[%clk 0:00:15]}  Kh3 {[%clk 0:00:05]} 73. Rxh5+ {[%clk 0:00:07]}  Bxh5 {[%clk 0:00:05]} 1/2-1/2


[Site "https://www.chess.com"]

[Event "Titled Tuesday Blitz March 28 Early 2023"]
[White "Mazurkiewicz, Michal"]
[Black "Belov, Alexei"]
[WhiteFideId "1124943"]
[BlackFideId "4128206"]
[WhiteElo "2054"]
[BlackElo "2547"]
[Result "1/2-1/2"]
[Round "11"]
[TimeControl "180+2"]
[Date "2023.03.28"]
[WhiteClock "0:00:06"]
[BlackClock "0:00:23"]

1. e4 {[%clk 0:03:00]}  e6 {[%clk 0:02:59]} 2. d3 {[%clk 0:02:56]}  d5 {[%clk 0:02:59]} 3. Nd2 {[%clk 0:02:57]}  Nf6 {[%clk 0:02:59]} 4. Ngf3 {[%clk 0:02:56]}  Nc6 {[%clk 0:02:59]} 5. c3 {[%clk 0:02:56]}  e5 {[%clk 0:02:59]} 6. exd5 {[%clk 0:02:54]}  Nxd5 {[%clk 0:02:59]} 7. Nc4 {[%clk 0:02:48]}  f6 {[%clk 0:02:53]} 8. g3 {[%clk 0:02:48]}  Bc5 {[%clk 0:02:53]} 9. Bg2 {[%clk 0:02:48]}  a5 {[%clk 0:02:53]} 10. O-O {[%clk 0:02:46]}  O-O {[%clk 0:02:53]} 11. a4 {[%clk 0:02:44]}  Kh8 {[%clk 0:02:52]} 12. Qb3 {[%clk 0:02:43]}  Nb6 {[%clk 0:02:50]} 13. Be3 {[%clk 0:02:26]}  Qe7 {[%clk 0:02:44]} 14. Bxc5 {[%clk 0:02:22]}  Qxc5 {[%clk 0:02:44]} 15. Nxb6 {[%clk 0:02:13]}  cxb6 {[%clk 0:02:43]} 16. Rad1 {[%clk 0:02:12]}  Bg4 {[%clk 0:02:40]} 17. h3 {[%clk 0:02:03]}  Bh5 {[%clk 0:02:36]} 18. g4 {[%clk 0:02:03]}  Bf7 {[%clk 0:02:36]} 19. Qb5 {[%clk 0:02:04]}  Rfd8 {[%clk 0:02:25]} 20. Rfe1 {[%clk 0:01:38]}  Qxb5 {[%clk 0:02:12]} 21. axb5 {[%clk 0:01:39]}  Na7 {[%clk 0:02:12]} 22. d4 {[%clk 0:01:34]}  Bb3 {[%clk 0:02:05]} 23. Rc1 {[%clk 0:01:23]}  Nxb5 {[%clk 0:01:58]} 24. dxe5 {[%clk 0:01:23]}  fxe5 {[%clk 0:01:55]} 25. Rxe5 {[%clk 0:01:23]}  Nd6 {[%clk 0:01:54]} 26. Nd4 {[%clk 0:01:21]}  Bg8 {[%clk 0:01:50]} 27. Re7 {[%clk 0:01:20]}  a4 {[%clk 0:01:37]} 28. Nf5 {[%clk 0:00:55]}  Nxf5 {[%clk 0:01:26]} 29. gxf5 {[%clk 0:00:56]}  Rd2 {[%clk 0:01:26]} 30. Rce1 {[%clk 0:00:46]}  Rxb2 {[%clk 0:01:17]} 31. Re8 {[%clk 0:00:43]}  Rxe8 {[%clk 0:01:09]} 32. Rxe8 {[%clk 0:00:44]}  Rd2 {[%clk 0:01:09]} 33. Bf1 {[%clk 0:00:45]}  Rd1 {[%clk 0:01:06]} 34. Kg2 {[%clk 0:00:42]}  Rxf1 {[%clk 0:00:57]} 35. Kxf1 {[%clk 0:00:42]}  a3 {[%clk 0:00:58]} 36. Ra8 {[%clk 0:00:43]}  a2 {[%clk 0:00:58]} 37. Ke1 {[%clk 0:00:43]}  h5 {[%clk 0:00:52]} 38. Kd2 {[%clk 0:00:42]}  Kh7 {[%clk 0:00:52]} 39. Kc1 {[%clk 0:00:42]}  Bc4 {[%clk 0:00:47]} 40. Kb2 {[%clk 0:00:42]}  Kh6 {[%clk 0:00:45]} 41. h4 {[%clk 0:00:40]}  g6 {[%clk 0:00:44]} 42. fxg6 {[%clk 0:00:37]}  Kxg6 {[%clk 0:00:44]} 43. Rd8 {[%clk 0:00:31]}  Kf5 {[%clk 0:00:41]} 44. Rd6 {[%clk 0:00:27]}  b5 {[%clk 0:00:40]} 45. Rd4 {[%clk 0:00:25]}  Ke5 {[%clk 0:00:37]} 46. Ka1 {[%clk 0:00:13]}  Kf5 {[%clk 0:00:35]} 47. Kb2 {[%clk 0:00:09]}  b6 {[%clk 0:00:34]} 48. Ka1 {[%clk 0:00:09]}  Ke5 {[%clk 0:00:34]} 49. Kb2 {[%clk 0:00:09]}  Be6 {[%clk 0:00:29]} 50. Ka1 {[%clk 0:00:05]}  Bc4 {[%clk 0:00:26]} 51. Kb2 {[%clk 0:00:05]}  Kf5 {[%clk 0:00:26]} 52. Ka1 {[%clk 0:00:06]}  Be6 {[%clk 0:00:26]} 53. Kb2 {[%clk 0:00:06]}  Ke5 {[%clk 0:00:25]} 54. Ka1 {[%clk 0:00:06]}  Bc4 {[%clk 0:00:23]} 1/2-1/2


[Site "https://www.chess.com"]

[Event "Titled Tuesday Blitz March 28 Early 2023"]
[White "Vovk, Orest"]
[Black "Iljin, Timofey"]
[WhiteFideId "14113490"]
[BlackFideId "14110180"]
[WhiteElo "2215"]
[BlackElo "2397"]
[Result "1-0"]
[Round "11"]
[TimeControl "180+2"]
[Date "2023.03.28"]
[WhiteClock "0:00:08"]
[BlackClock "0:00:23"]

1. h4 {[%clk 0:02:35]}  h5 {[%clk 0:02:57]} 2. Nc3 {[%clk 0:02:24]}  Nf6 {[%clk 0:02:51]} 3. Nf3 {[%clk 0:02:22]}  Nc6 {[%clk 0:02:51]} 4. Ng5 {[%clk 0:02:21]}  e5 {[%clk 0:02:48]} 5. e3 {[%clk 0:02:15]}  d5 {[%clk 0:02:43]} 6. e4 {[%clk 0:02:14]}  d4 {[%clk 0:02:42]} 7. Bc4 {[%clk 0:02:09]}  dxc3 {[%clk 0:02:35]} 8. Bxf7+ {[%clk 0:02:08]}  Ke7 {[%clk 0:02:36]} 9. bxc3 {[%clk 0:02:08]}  Nxe4 {[%clk 0:02:30]} 10. Ba3+ {[%clk 0:02:02]}  Nd6 {[%clk 0:02:27]} 11. Qe2 {[%clk 0:01:42]}  Bd7 {[%clk 0:02:04]} 12. d4 {[%clk 0:01:37]}  e4 {[%clk 0:01:57]} 13. Qxe4+ {[%clk 0:01:34]}  Kf6 {[%clk 0:01:53]} 14. Qg6+ {[%clk 0:01:09]}  Ke7 {[%clk 0:01:53]} 15. O-O {[%clk 0:00:59]}  Rh6 {[%clk 0:01:30]} 16. Rfe1+ {[%clk 0:00:55]}  Be6 {[%clk 0:01:31]} 17. Rxe6+ {[%clk 0:00:48]}  Kd7 {[%clk 0:01:31]} 18. Qd3 {[%clk 0:00:45]}  Kc8 {[%clk 0:01:17]} 19. Rxh6 {[%clk 0:00:43]}  gxh6 {[%clk 0:01:17]} 20. Be6+ {[%clk 0:00:43]}  Kb8 {[%clk 0:01:17]} 21. Nf3 {[%clk 0:00:40]}  a6 {[%clk 0:01:11]} 22. d5 {[%clk 0:00:40]}  Ne7 {[%clk 0:01:07]} 23. Ne5 {[%clk 0:00:40]}  Ka7 {[%clk 0:01:06]} 24. Rb1 {[%clk 0:00:34]}  Bg7 {[%clk 0:01:02]} 25. Qe3+ {[%clk 0:00:32]}  b6 {[%clk 0:01:00]} 26. Nd7 {[%clk 0:00:31]}  Nb5 {[%clk 0:00:51]} 27. Bxe7 {[%clk 0:00:28]}  Qxe7 {[%clk 0:00:51]} 28. c4 {[%clk 0:00:27]}  Bd4 {[%clk 0:00:31]} 29. Qd3 {[%clk 0:00:25]}  Nc3 {[%clk 0:00:31]} 30. Rb3 {[%clk 0:00:23]}  Qg7 {[%clk 0:00:26]} 31. c5 {[%clk 0:00:20]}  b5 {[%clk 0:00:21]} 32. a4 {[%clk 0:00:17]}  bxa4 {[%clk 0:00:18]} 33. Rb4 {[%clk 0:00:16]}  Nb5 {[%clk 0:00:16]} 34. Rxb5 {[%clk 0:00:15]}  axb5 {[%clk 0:00:16]} 35. Qxb5 {[%clk 0:00:16]}  Bxf2+ {[%clk 0:00:15]} 36. Kxf2 {[%clk 0:00:13]}  Qd4+ {[%clk 0:00:15]} 37. Ke2 {[%clk 0:00:09]}  Qe4+ {[%clk 0:00:14]} 38. Kd2 {[%clk 0:00:10]}  Qd4+ {[%clk 0:00:14]} 39. Kc1 {[%clk 0:00:08]}  Qa1+ {[%clk 0:00:14]} 40. Qb1 {[%clk 0:00:06]}  Qxb1+ {[%clk 0:00:09]} 41. Kxb1 {[%clk 0:00:06]}  Kb7 {[%clk 0:00:09]} 42. d6 {[%clk 0:00:05]}  cxd6 {[%clk 0:00:08]} 43. Bd5+ {[%clk 0:00:05]}  Kc7 {[%clk 0:00:09]} 44. Bxa8 {[%clk 0:00:06]}  Kxd7 {[%clk 0:00:09]} 45. cxd6 {[%clk 0:00:05]}  Kxd6 {[%clk 0:00:10]} 46. Bf3 {[%clk 0:00:05]}  Ke5 {[%clk 0:00:10]} 47. Bxh5 {[%clk 0:00:05]}  Kf4 {[%clk 0:00:11]} 48. g4 {[%clk 0:00:05]}  Ke5 {[%clk 0:00:11]} 49. g5 {[%clk 0:00:05]}  Kd4 {[%clk 0:00:12]} 50. gxh6 {[%clk 0:00:05]}  Kc4 {[%clk 0:00:12]} 51. h7 {[%clk 0:00:06]}  Kb4 {[%clk 0:00:13]} 52. h8=Q {[%clk 0:00:06]}  Ka3 {[%clk 0:00:14]} 53. Ka1 {[%clk 0:00:05]}  Kb4 {[%clk 0:00:14]} 54. Qf8+ {[%clk 0:00:06]}  Kc4 {[%clk 0:00:15]} 55. Bd1 {[%clk 0:00:06]}  Kc3 {[%clk 0:00:15]} 56. Qf3+ {[%clk 0:00:06]}  Kc4 {[%clk 0:00:16]} 57. Qd3+ {[%clk 0:00:06]}  Kb4 {[%clk 0:00:17]} 58. h5 {[%clk 0:00:07]}  Ka5 {[%clk 0:00:17]} 59. h6 {[%clk 0:00:07]}  a3 {[%clk 0:00:18]} 60. h7 {[%clk 0:00:08]}  a2 {[%clk 0:00:19]} 61. h8=Q {[%clk 0:00:08]}  Kb4 {[%clk 0:00:20]} 62. Qh4+ {[%clk 0:00:08]}  Ka5 {[%clk 0:00:20]} 63. Qf5+ {[%clk 0:00:08]}  Ka6 {[%clk 0:00:21]} 64. Qhf6+ {[%clk 0:00:08]}  Ka7 {[%clk 0:00:22]} 65. Qh7+ {[%clk 0:00:08]}  Ka8 {[%clk 0:00:23]} 66. Qfh8# {[%clk 0:00:08]} 1-0


[Site "https://www.chess.com"]

[Event "Titled Tuesday Blitz March 28 Early 2023"]
[White "Tarasova, Viktoriya"]
[Black "Golubev, Mikhail"]
[WhiteFideId "4175840"]
[BlackFideId "14100983"]
[WhiteElo "2182"]
[BlackElo "2374"]
[Result "0-1"]
[Round "11"]
[TimeControl "180+2"]
[Date "2023.03.28"]
[WhiteClock "0:00:27"]
[BlackClock "0:00:44"]

1. d4 {[%clk 0:03:00]}  Nf6 {[%clk 0:02:59]} 2. c4 {[%clk 0:02:59]}  d6 {[%clk 0:02:58]} 3. Nc3 {[%clk 0:02:55]}  g6 {[%clk 0:02:59]} 4. e4 {[%clk 0:02:55]}  Bg7 {[%clk 0:02:59]} 5. h3 {[%clk 0:02:54]}  Nbd7 {[%clk 0:02:56]} 6. Be3 {[%clk 0:02:54]}  e5 {[%clk 0:02:56]} 7. d5 {[%clk 0:02:55]}  Nc5 {[%clk 0:02:56]} 8. Qc2 {[%clk 0:02:55]}  a5 {[%clk 0:02:49]} 9. g4 {[%clk 0:02:54]}  h5 {[%clk 0:02:47]} 10. g5 {[%clk 0:02:54]}  Nh7 {[%clk 0:02:47]} 11. h4 {[%clk 0:02:50]}  f6 {[%clk 0:02:46]} 12. gxf6 {[%clk 0:02:48]}  Bxf6 {[%clk 0:02:38]} 13. O-O-O {[%clk 0:02:27]}  Bxh4 {[%clk 0:02:37]} 14. Nf3 {[%clk 0:02:25]}  Bf6 {[%clk 0:02:35]} 15. Bh3 {[%clk 0:02:06]}  Bxh3 {[%clk 0:02:31]} 16. Rxh3 {[%clk 0:02:04]}  Qd7 {[%clk 0:02:26]} 17. Rg3 {[%clk 0:02:04]}  Kf7 {[%clk 0:02:10]} 18. Rdg1 {[%clk 0:01:59]}  Rhg8 {[%clk 0:02:10]} 19. Ng5+ {[%clk 0:01:32]}  Nxg5 {[%clk 0:02:06]} 20. Bxg5 {[%clk 0:01:32]}  Bxg5+ {[%clk 0:02:02]} 21. Rxg5 {[%clk 0:01:32]}  Qh3 {[%clk 0:01:47]} 22. R5g3 {[%clk 0:01:28]}  Qh4 {[%clk 0:01:41]} 23. Qe2 {[%clk 0:01:25]}  Rg7 {[%clk 0:01:28]} 24. Kb1 {[%clk 0:01:11]}  Rag8 {[%clk 0:01:15]} 25. f3 {[%clk 0:01:11]}  Qf4 {[%clk 0:01:10]} 26. Nb5 {[%clk 0:01:09]}  Kf6 {[%clk 0:01:02]} 27. Nc3 {[%clk 0:00:34]}  g5 {[%clk 0:00:59]} 28. Nd1 {[%clk 0:00:34]}  g4 {[%clk 0:00:45]} 29. fxg4 {[%clk 0:00:29]}  Qxe4+ {[%clk 0:00:44]} 30. Qxe4 {[%clk 0:00:28]}  Nxe4 {[%clk 0:00:44]} 31. Rf3+ {[%clk 0:00:28]}  Ke7 {[%clk 0:00:44]} 32. Ne3 {[%clk 0:00:27]}  Nd2+ {[%clk 0:00:44]} 0-1


[Site "https://www.chess.com"]

[Event "Titled Tuesday Blitz March 28 Early 2023"]
[White "Shukhman, Anna"]
[Black "Reprintsev, Alexander"]
[WhiteFideId "54180058"]
[BlackFideId "14100541"]
[WhiteElo "2125"]
[BlackElo "2229"]
[Result "0-1"]
[Round "11"]
[TimeControl "180+2"]
[Date "2023.03.28"]
[WhiteClock "0:00:10"]
[BlackClock "0:00:50"]

1. e4 {[%clk 0:03:00]}  e5 {[%clk 0:02:49]} 2. Nf3 {[%clk 0:03:00]}  Nc6 {[%clk 0:02:49]} 3. Bc4 {[%clk 0:02:58]}  Nf6 {[%clk 0:02:48]} 4. Ng5 {[%clk 0:02:57]}  d5 {[%clk 0:02:48]} 5. exd5 {[%clk 0:02:57]}  Na5 {[%clk 0:02:48]} 6. Bb5+ {[%clk 0:02:57]}  Bd7 {[%clk 0:02:46]} 7. Bxd7+ {[%clk 0:02:54]}  Qxd7 {[%clk 0:02:45]} 8. Nc3 {[%clk 0:02:54]}  Nxd5 {[%clk 0:02:43]} 9. Qf3 {[%clk 0:02:52]}  Nb4 {[%clk 0:02:34]} 10. O-O {[%clk 0:02:38]}  Nxc2 {[%clk 0:02:33]} 11. Rb1 {[%clk 0:02:25]}  Nd4 {[%clk 0:02:33]} 12. Qe4 {[%clk 0:02:25]}  f6 {[%clk 0:02:31]} 13. d3 {[%clk 0:02:03]}  Nac6 {[%clk 0:02:28]} 14. Nf3 {[%clk 0:01:50]}  O-O-O {[%clk 0:02:29]} 15. Nxd4 {[%clk 0:01:49]}  Qxd4 {[%clk 0:02:28]} 16. Qf5+ {[%clk 0:01:48]}  Qd7 {[%clk 0:02:26]} 17. Qe4 {[%clk 0:01:48]}  f5 {[%clk 0:02:25]} 18. Qa4 {[%clk 0:01:47]}  Kb8 {[%clk 0:02:21]} 19. Be3 {[%clk 0:01:45]}  f4 {[%clk 0:02:18]} 20. Bd2 {[%clk 0:01:41]}  Bc5 {[%clk 0:02:15]} 21. Ne4 {[%clk 0:01:40]}  Bb6 {[%clk 0:02:15]} 22. Rbd1 {[%clk 0:01:25]}  Nd4 {[%clk 0:02:12]} 23. Qa3 {[%clk 0:01:19]}  Ne2+ {[%clk 0:02:08]} 24. Kh1 {[%clk 0:01:19]}  Qxd3 {[%clk 0:02:08]} 25. Qxd3 {[%clk 0:01:04]}  Rxd3 {[%clk 0:02:07]} 26. Rfe1 {[%clk 0:01:04]}  Nd4 {[%clk 0:02:02]} 27. a4 {[%clk 0:01:02]}  a5 {[%clk 0:01:43]} 28. Ng5 {[%clk 0:00:45]}  Nc6 {[%clk 0:01:36]} 29. Nf7 {[%clk 0:00:36]}  Re8 {[%clk 0:01:34]} 30. f3 {[%clk 0:00:31]}  Re7 {[%clk 0:01:31]} 31. Ng5 {[%clk 0:00:30]}  h6 {[%clk 0:01:30]} 32. Ne4 {[%clk 0:00:30]}  Red7 {[%clk 0:01:30]} 33. Re2 {[%clk 0:00:30]}  Be3 {[%clk 0:01:28]} 34. g3 {[%clk 0:00:22]}  Bxd2 {[%clk 0:01:26]} 35. Rexd2 {[%clk 0:00:21]}  Rxd2 {[%clk 0:01:20]} 36. Rxd2 {[%clk 0:00:22]}  Rxd2 {[%clk 0:01:20]} 37. Nxd2 {[%clk 0:00:23]}  fxg3 {[%clk 0:01:18]} 38. hxg3 {[%clk 0:00:24]}  Nd4 {[%clk 0:01:14]} 39. f4 {[%clk 0:00:22]}  exf4 {[%clk 0:01:13]} 40. gxf4 {[%clk 0:00:23]}  c6 {[%clk 0:01:13]} 41. Kg2 {[%clk 0:00:23]}  Kc7 {[%clk 0:01:13]} 42. Nc4 {[%clk 0:00:23]}  b6 {[%clk 0:01:12]} 43. Kg3 {[%clk 0:00:22]}  Ne6 {[%clk 0:01:04]} 44. b3 {[%clk 0:00:15]}  Nc5 {[%clk 0:01:02]} 45. Nd2 {[%clk 0:00:14]}  g6 {[%clk 0:01:01]} 46. Kg4 {[%clk 0:00:14]}  Kd6 {[%clk 0:01:01]} 47. Nc4+ {[%clk 0:00:14]}  Kc7 {[%clk 0:01:00]} 48. Nd2 {[%clk 0:00:14]}  b5 {[%clk 0:01:01]} 49. axb5 {[%clk 0:00:13]}  cxb5 {[%clk 0:01:01]} 50. f5 {[%clk 0:00:14]}  gxf5+ {[%clk 0:01:00]} 51. Kxf5 {[%clk 0:00:15]}  Nxb3 {[%clk 0:00:59]} 52. Nxb3 {[%clk 0:00:15]}  a4 {[%clk 0:00:59]} 53. Nc1 {[%clk 0:00:12]}  b4 {[%clk 0:00:59]} 54. Ke4 {[%clk 0:00:12]}  h5 {[%clk 0:00:59]} 55. Kd3 {[%clk 0:00:12]}  h4 {[%clk 0:01:00]} 56. Ne2 {[%clk 0:00:10]}  h3 {[%clk 0:00:59]} 57. Kc4 {[%clk 0:00:10]}  h2 {[%clk 0:00:59]} 58. Ng3 {[%clk 0:00:10]}  b3 {[%clk 0:00:57]} 59. Kc3 {[%clk 0:00:10]}  Kb6 {[%clk 0:00:57]} 60. Kb2 {[%clk 0:00:10]}  Kc5 {[%clk 0:00:56]} 61. Kc3 {[%clk 0:00:10]}  Kd5 {[%clk 0:00:56]} 62. Kd3 {[%clk 0:00:10]}  Ke5 {[%clk 0:00:52]} 63. Kc3 {[%clk 0:00:10]}  Kf4 {[%clk 0:00:52]} 64. Ne2+ {[%clk 0:00:10]}  Kg4 {[%clk 0:00:50]} 0-1


[Site "https://www.chess.com"]

[Event "Titled Tuesday Blitz March 28 Early 2023"]
[White "EdmundPlayer"]
[Black "Michalski, Olaf"]
[BlackFideId "1106740"]
[WhiteElo "2264"]
[BlackElo "2173"]
[Result "0-1"]
[Round "11"]
[TimeControl "180+2"]
[Date "2023.03.28"]
[WhiteClock "0:00:22"]
[BlackClock "0:00:09"]

1. e4 {[%clk 0:02:48]}  c5 {[%clk 0:02:58]} 2. Nf3 {[%clk 0:02:48]}  a6 {[%clk 0:02:58]} 3. c4 {[%clk 0:02:47]}  Nc6 {[%clk 0:02:57]} 4. d4 {[%clk 0:02:47]}  cxd4 {[%clk 0:02:58]} 5. Nxd4 {[%clk 0:02:48]}  Nf6 {[%clk 0:02:58]} 6. Nc3 {[%clk 0:02:47]}  e5 {[%clk 0:02:58]} 7. Nde2 {[%clk 0:02:45]}  Bc5 {[%clk 0:02:57]} 8. Bg5 {[%clk 0:02:41]}  Bxf2+ {[%clk 0:02:23]} 9. Kxf2 {[%clk 0:02:40]}  Ng4+ {[%clk 0:02:23]} 10. Kg1 {[%clk 0:02:40]}  Qxg5 {[%clk 0:02:23]} 11. Nd5 {[%clk 0:02:33]}  O-O {[%clk 0:02:10]} 12. h4 {[%clk 0:02:21]}  Qh6 {[%clk 0:01:51]} 13. Ng3 {[%clk 0:02:17]}  d6 {[%clk 0:01:50]} 14. Nf5 {[%clk 0:02:17]}  Bxf5 {[%clk 0:01:39]} 15. exf5 {[%clk 0:02:18]}  Ne3 {[%clk 0:01:17]} 16. Qd2 {[%clk 0:02:09]}  Nxf5 {[%clk 0:01:13]} 17. Qxh6 {[%clk 0:02:10]}  Nxh6 {[%clk 0:01:11]} 18. Bd3 {[%clk 0:02:05]}  f5 {[%clk 0:01:07]} 19. Rf1 {[%clk 0:01:54]}  Rae8 {[%clk 0:01:02]} 20. Rh3 {[%clk 0:01:48]}  e4 {[%clk 0:00:57]} 21. Be2 {[%clk 0:01:45]}  Nd4 {[%clk 0:00:52]} 22. Bd1 {[%clk 0:01:45]}  Re5 {[%clk 0:00:42]} 23. Rg3 {[%clk 0:01:24]}  Kf7 {[%clk 0:00:26]} 24. Bh5+ {[%clk 0:01:14]}  g6 {[%clk 0:00:25]} 25. Bd1 {[%clk 0:01:15]}  Rfe8 {[%clk 0:00:26]} 26. h5 {[%clk 0:01:15]}  e3 {[%clk 0:00:26]} 27. Re1 {[%clk 0:01:05]}  e2 {[%clk 0:00:25]} 28. Ba4 {[%clk 0:01:04]}  Rc8 {[%clk 0:00:22]} 29. hxg6+ {[%clk 0:00:59]}  hxg6 {[%clk 0:00:21]} 30. Nb6 {[%clk 0:00:45]}  Rc7 {[%clk 0:00:16]} 31. Bb3 {[%clk 0:00:38]}  Kg7 {[%clk 0:00:13]} 32. Nd5 {[%clk 0:00:37]}  Rc5 {[%clk 0:00:12]} 33. Nf4 {[%clk 0:00:35]}  Ng4 {[%clk 0:00:09]} 34. Nd3 {[%clk 0:00:29]}  b5 {[%clk 0:00:08]} 35. cxb5 {[%clk 0:00:23]}  axb5 {[%clk 0:00:07]} 36. Nxc5 {[%clk 0:00:22]}  dxc5 {[%clk 0:00:08]} 37. Rc3 {[%clk 0:00:20]}  c4 {[%clk 0:00:08]} 38. Bc2 {[%clk 0:00:20]}  Nf6 {[%clk 0:00:07]} 39. a4 {[%clk 0:00:19]}  Nd5 {[%clk 0:00:07]} 40. axb5 {[%clk 0:00:18]}  Nxc3 {[%clk 0:00:07]} 41. bxc3 {[%clk 0:00:18]}  Nxc2 {[%clk 0:00:08]} 42. b6 {[%clk 0:00:18]}  Nxe1 {[%clk 0:00:07]} 43. b7 {[%clk 0:00:19]}  Rb5 {[%clk 0:00:07]} 44. Kf2 {[%clk 0:00:20]}  Rxb7 {[%clk 0:00:07]} 45. Kxe1 {[%clk 0:00:21]}  Re7 {[%clk 0:00:07]} 46. Kf2 {[%clk 0:00:21]}  Kf6 {[%clk 0:00:08]} 47. Ke1 {[%clk 0:00:21]}  Kg5 {[%clk 0:00:09]} 48. g4 {[%clk 0:00:21]}  Kf4 {[%clk 0:00:10]} 49. Kf2 {[%clk 0:00:22]}  e1=Q+ {[%clk 0:00:09]} 50. Kg2 {[%clk 0:00:22]}  Re2+ {[%clk 0:00:09]} 51. Kh3 {[%clk 0:00:22]}  Qg3# {[%clk 0:00:09]} 0-1


[Site "https://www.chess.com"]